fUST/lending_fUST_20250218
["ID","MTS","AMOUNT","RATE_DAILY","PERIOD"]
[353471272,1739869837027,-500.0,0.00013927,2]
[353471273,1739869837037,-500.0,0.00013927,2]
[353471274,1739869837047,-500.0,0.00013927,2]
[353471275,1739869837057,-500.0,0.00013927,2]
[353471276,1739869837066,-500.0,0.00013927,2]
[353471277,1739869837076,-500.0,0.00013927,2]
[353471278,1739869837086,-500.0,0.00013927,2]
[353471279,1739869837098,-500.0,0.00013927,2]
[353471280,1739869837108,-500.0,0.00013927,2]
[353471281,1739869837118,-500.43854597,0.00013927,2]
[353471282,1739869837129,-500.32011754,0.00013927,2]
[353471283,1739869837140,-500.0,0.00013927,2]
[353471284,1739869837150,-500.0,0.00013927,2]
[353471285,1739869837160,-500.0,0.00013927,2]
[353471286,1739869837173,-500.0,0.00013927,2]
[353471287,1739869837183,-500.0,0.00013927,2]
[353471288,1739869837193,-500.0,0.00013927,2]
[353471289,1739869837203,-500.0,0.00013927,2]
[353471290,1739869837212,-500.0,0.00013927,2]
[353471291,1739869837221,-500.0,0.00013927,2]
[353471292,1739869837231,-500.0,0.00013927,2]
[353471293,1739869837241,-504.8694788,0.00013927,2]
[353471294,1739869837251,-500.0,0.00013927,2]
[353471295,1739869837260,-500.0,0.00013927,2]
[353471296,1739869837270,-500.0,0.00013927,2]
[353471297,1739869837280,-500.51144005,0.00013927,2]
[353471298,1739869837289,-500.0,0.00013927,2]
[353471299,1739869837300,-500.0,0.00013927,2]
[353471300,1739869837309,-500.0,0.00013927,2]
[353471301,1739869837319,-500.0,0.00013927,2]
[353471302,1739869837329,-307.41101347,0.00013927,2]
[353471303,1739869837339,-500.0,0.00013927,2]
[353471304,1739869837348,-500.0,0.00013927,2]
[353471305,1739869837359,-500.73652485,0.00013927,2]
[353471306,1739869837368,-501.41350484,0.00013927,2]
[353471307,1739869837378,-500.23844055,0.00013927,2]
[353471308,1739869837388,-500.35343644,0.00013927,2]
[353471309,1739869837398,-500.0,0.00013927,2]
[353471310,1739869837407,-500.0,0.00013927,2]
[353471311,1739869837420,-616.7,0.00013927,2]
[353471312,1739869837430,-503.20242465,0.00013927,2]
[353471313,1739869837448,-500.0,0.00013927,2]
[353471314,1739869837465,-500.0,0.00013927,2]
[353471315,1739869837480,-500.0,0.00013927,2]
[353471316,1739869837493,-300.0,0.00013927,2]
[353471317,1739869837504,-500.0,0.00013927,2]
[353471318,1739869837517,-508.99181733,0.00013927,2]
[353471319,1739869837531,-500.0,0.00013927,2]
[353471320,1739869837543,-500.0,0.00013927,2]
[353471322,1739869837555,-500.44589495,0.00013927,2]
[353471323,1739869837568,-504.29008522,0.00013927,2]
[353471324,1739869837580,-500.0,0.00013927,2]
[353471325,1739869837594,-649.39,0.00013927,2]
[353471326,1739869837607,-500.0,0.00013927,2]
[353471327,1739869837619,-500.0,0.00013927,2]
[353471328,1739869837631,-500.0,0.00013927,2]
[353471329,1739869837642,-500.0,0.00013927,2]
[353471330,1739869837653,-500.0,0.00013927,2]
[353471331,1739869837667,-500.0,0.00013927,2]
[353471332,1739869837679,-500.48007743,0.00013927,2]
[353471333,1739869837692,-500.0,0.00013927,2]
[353471334,1739869837704,-500.0,0.00013927,2]
[353471335,1739869837718,-500.0,0.00013927,2]
[353471336,1739869837730,-501.05944997,0.00013927,2]
[353471337,1739869837742,-500.0,0.00013927,2]
[353471339,1739869837754,-500.0,0.00013927,2]
[353471341,1739869837767,-500.0,0.00013927,2]
[353471343,1739869837779,-500.0,0.00013927,2]
[353471345,1739869837791,-500.0,0.00013927,2]
[353471347,1739869837803,-500.0,0.00013927,2]
[353471349,1739869837816,-500.0,0.00013927,2]
[353471350,1739869837827,-500.0,0.00013927,2]
[353471351,1739869837840,-503.57287931,0.00013927,2]
[353471353,1739869837851,-500.0,0.00013927,2]
[353471355,1739869837865,-500.84663735,0.00013927,2]
[353471358,1739869837876,-500.0,0.00013927,2]
[353471360,1739869837888,-500.0,0.00013927,2]
[353471362,1739869837899,-500.0,0.00013927,2]
[353471364,1739869837912,-500.0,0.00013927,2]
[353471366,1739869837926,-500.0,0.00013927,2]
[353471368,1739869837938,-500.0,0.00013927,2]
[353471370,1739869837950,-500.0,0.00013927,2]
[353471372,1739869837962,-500.0,0.00013927,2]
[353471374,1739869837972,-500.0,0.00013927,2]
[353471376,1739869837983,-500.0,0.00013927,2]
[353471377,1739869837993,-645.34,0.00013927,2]
[353471378,1739869838006,-550.56,0.00013927,2]
[353471380,1739869838020,-500.0,0.00013927,2]
[353471381,1739869838031,-500.0,0.00013927,2]
[353471382,1739869838041,-500.7275648,0.00013927,2]
[353471383,1739869838053,-581.98,0.00013927,2]
[353471384,1739869838063,-500.0,0.00013927,2]
[353471385,1739869838073,-500.0,0.00013927,2]
[353471386,1739869838085,-500.0,0.00013927,2]
[353471387,1739869838100,-500.0,0.00013927,2]
[353471388,1739869838112,-500.0,0.00013927,2]
[353471389,1739869838123,-500.0,0.00013927,2]
[353471390,1739869838133,-646.81,0.00013927,2]
[353471391,1739869838144,-500.0,0.00013927,2]
[353471392,1739869838154,-500.0,0.00013927,2]
[353471393,1739869838168,-169.32418974,0.00013927,2]
[353471395,1739869838179,-500.0,0.00013927,2]
[353471397,1739869838190,-549.54,0.00013927,2]
[353471398,1739869838200,-500.0,0.00013927,2]
[353471399,1739869838212,-500.0,0.00013927,2]
[353471400,1739869838223,-500.0,0.00013927,2]
[353471401,1739869838235,-500.0,0.00013927,2]
[353471402,1739869838246,-500.0,0.00013927,2]
[353471403,1739869838258,-507.88328754,0.00013927,2]
[353471404,1739869838270,-500.0,0.00013927,2]
[353471405,1739869838281,-500.0,0.00013927,2]
[353471406,1739869838291,-500.0,0.00013927,2]
[353471407,1739869838303,-500.0,0.00013927,2]
[353471408,1739869838313,-500.0,0.00013927,2]
[353471409,1739869838325,-500.0,0.00013927,2]
[353471410,1739869838336,-500.5474501,0.00013927,2]
[353471411,1739869838347,-500.0,0.00013928,2]
[353471412,1739869838358,-500.0,0.00013928,2]
[353471413,1739869838370,-500.0,0.00013928,2]
[353471414,1739869838381,-204.89678136,0.00013973,2]
[353471415,1739869838392,-500.0,0.00013973,2]
[353471416,1739869838403,-500.0,0.00013973,2]
[353471417,1739869838415,-500.0,0.00013973,2]
[353471418,1739869838426,-500.0,0.00013973,2]
[353471419,1739869838437,-296.87502323,0.00013973,2]
[353471420,1739869838448,-500.0,0.00014006,2]
[353471421,1739869838460,-598.48,0.00014006,2]
[353471422,1739869838472,-645.03,0.00014006,2]
[353471423,1739869838484,-500.0,0.00014006,2]
[353471424,1739869838495,-500.0,0.00014006,2]
[353471425,1739869838506,-646.54,0.00014006,2]
[353471426,1739869838517,-500.0,0.00014006,2]
[353471427,1739869838528,-500.0,0.00014006,2]
[353471428,1739869838539,-500.0,0.00014006,2]
[353471429,1739869838550,-500.0,0.00014006,2]
[353471430,1739869838562,-500.0,0.00014006,2]
[353471431,1739869838573,-500.0,0.00014006,2]
[353471432,1739869838688,-500.0,0.00014006,2]
[353471433,1739869838704,-527.26,0.00014006,2]
[353471434,1739869838714,-500.0,0.00014006,2]
[353471435,1739869838723,-500.0,0.00014006,2]
[353471436,1739869838733,-500.0,0.00014006,2]
[353471437,1739869838743,-500.0,0.00014006,2]
[353471438,1739869838752,-417.70967352,0.00014006,2]
[353471439,1739869838761,-500.0,0.00014006,2]
[353471440,1739869838770,-500.0,0.00014006,2]
[353471441,1739869838780,-500.0,0.00014006,2]
[353471442,1739869838789,-500.0,0.00014006,2]
[353471443,1739869838799,-500.0,0.00014006,2]
[353471444,1739869838808,-500.0,0.00014006,2]
[353471445,1739869838817,-500.0,0.00014006,2]
[353471446,1739869838827,-500.0,0.00014006,2]
[353471447,1739869838837,-374.31865593,0.00014006,2]
[353471448,1739869838846,-500.0,0.00014006,2]
[353471449,1739869838855,-500.0,0.00014006,2]
[353471450,1739869838865,-500.0,0.00014006,2]
[353471451,1739869838874,-500.0,0.00014006,2]
[353471452,1739869838883,-500.0,0.00014006,2]
[353471453,1739869838892,-308.52,0.00014006,2]
[353471454,1739869838902,-500.0,0.00014006,2]
[353471455,1739869838911,-500.0,0.00014006,2]
[353471456,1739869838922,-500.0,0.00014006,2]
[353471457,1739869838932,-500.0,0.00014006,2]
[353471458,1739869838941,-436.1360272,0.00014006,2]
[353471459,1739869838950,-500.0,0.00014006,2]
[353471460,1739869838960,-500.0,0.00014006,2]
[353471461,1739869838970,-500.0,0.00014006,2]
[353471462,1739869838980,-500.0,0.00014006,2]
[353471463,1739869838989,-500.0,0.00014006,2]
[353471464,1739869838999,-500.0,0.00014006,2]
[353471465,1739869839009,-500.0,0.00014006,2]
[353471466,1739869839019,-500.0,0.00014006,2]
[353471467,1739869839028,-500.0,0.00014006,2]
[353471468,1739869839037,-500.0,0.00014006,2]
[353471469,1739869839047,-500.0,0.00014007,2]
[353471470,1739869839058,-2081.65,0.00014007,2]
[353471471,1739869839068,-500.0,0.00014007,2]
[353471472,1739869839079,-500.0,0.00014007,2]
[353471473,1739869839090,-1034.17,0.00014007,2]
[353471474,1739869839099,-500.0,0.00014007,2]
[353471475,1739869839109,-500.0,0.00014008,2]
[353471476,1739869839118,-500.0,0.00014008,2]
[353471477,1739869839129,-500.0,0.00014008,2]
[353471478,1739869839139,-500.0,0.00014008,2]
[353471479,1739869839148,-500.0,0.00014008,2]
[353471480,1739869839158,-500.0,0.00014009,2]
[353471481,1739869839171,-406.93,0.00014009,2]
[353471482,1739869839180,-500.0,0.00014009,2]
[353471483,1739869839190,-500.0,0.00014009,2]
[353471484,1739869839199,-500.0,0.00014009,2]
[353471485,1739869839208,-573.36,0.00014009,2]
[353471486,1739869839218,-157.95,0.00014009,2]
[353471487,1739869839227,-500.0,0.00014009,2]
[353471488,1739869839236,-382.56,0.00014009,2]
[353471489,1739869839246,-209.63,0.00014009,2]
[353471490,1739869839255,-500.0,0.00014009,2]
[353471491,1739869839264,-500.0,0.00014009,2]
[353471492,1739869839274,-500.0,0.00014009,2]
[353471493,1739869839283,-500.0,0.00014009,2]
[353471494,1739869839293,-453.9,0.00014009,2]
[353471495,1739869839302,-500.0,0.00014009,2]
[353471496,1739869839311,-500.0,0.00014009,2]
[353471497,1739869839320,-1315.79,0.00014009,2]
[353471498,1739869839329,-500.0,0.00014009,2]
[353471499,1739869839338,-500.0,0.00014009,2]
[353471500,1739869839347,-366.02,0.00014009,2]
[353471501,1739869839356,-500.0,0.00014009,2]
[353471502,1739869839366,-500.0,0.00014011,2]
[353471503,1739869839375,-500.0,0.00014011,2]
[353471504,1739869839385,-500.0,0.00014088,2]
[353471505,1739869839394,-500.0,0.00014088,2]
[353471506,1739869839403,-500.0,0.00014088,2]
[353471507,1739869839413,-500.0,0.00014088,2]
[353471508,1739869839424,-500.0,0.00014088,2]
[353471509,1739869839433,-556.97171139,0.00014088,2]
[353471510,1739869839444,-500.0,0.00014088,2]
[353471511,1739869839454,-500.0,0.00014088,2]
[353471512,1739869839463,-489.53771517,0.00014088,2]
[353471513,1739869839472,-500.0,0.00014088,2]
[353471514,1739869839482,-500.0,0.00014088,2]
[353471515,1739869839492,-500.0,0.00014088,2]
[353471516,1739869839501,-500.0,0.00014088,2]
[353471517,1739869839511,-500.0,0.00014088,2]
[353471518,1739869839520,-289.97,0.00014089,2]
[353471519,1739869839529,-556.18,0.00014089,2]
[353471520,1739869839539,-170.84,0.00014089,2]
[353471521,1739869839548,-616.34,0.00014089,2]
[353471522,1739869839557,-500.0,0.00014089,2]
[353471523,1739869839566,-500.0,0.00014089,2]
[353471524,1739869839575,-500.0,0.00014089,2]
[353471525,1739869839584,-417.63,0.00014089,2]
[353471526,1739869839594,-334.59,0.00014089,2]
[353471527,1739869839603,-500.0,0.00014089,2]
[353471528,1739869839613,-500.0,0.00014089,2]
[353471529,1739869839622,-237.91,0.00014089,2]
[353471530,1739869839631,-180.63,0.00014089,2]
[353471531,1739869839640,-551.29,0.00014089,2]
[353471532,1739869839650,-500.0,0.00014089,2]
[353471533,1739869839659,-500.0,0.00014089,2]
[353471534,1739869839670,-500.0,0.00014089,2]
[353471535,1739869839679,-500.0,0.00014089,2]
[353471536,1739869839689,-421.87,0.00014089,2]
[353471537,1739869839699,-500.0,0.00014089,2]
[353471538,1739869839708,-500.0,0.00014089,2]
[353471539,1739869839718,-439.13225012,0.0001409,2]
[353471540,1739869839727,-500.0,0.0001409,2]
[353471541,1739869839736,-243.95094775,0.0001409,2]
[353471542,1739869839746,-2081.65,0.0001409,2]
[353471543,1739869839755,-500.0,0.0001409,2]
[353471544,1739869839764,-609.01,0.0001409,2]
[353471545,1739869839773,-611.59,0.0001409,2]
[353471546,1739869839785,-1034.17,0.0001409,2]
[353471547,1739869839795,-500.0,0.0001409,2]
[353471548,1739869839804,-500.0,0.00014091,2]
[353471549,1739869839814,-644.22,0.00014091,2]
[353471550,1739869839824,-473.63,0.00014091,2]
[353471551,1739869839833,-309.42,0.00014091,2]
[353471552,1739869839842,-500.0,0.00014091,2]
[353471553,1739869839852,-500.0,0.00014091,2]
[353471554,1739869839862,-500.0,0.00014091,2]
[353471555,1739869839871,-1315.79,0.00014091,2]
[353471556,1739869839881,-500.0,0.00014091,2]
[353471557,1739869839892,-251.97,0.00014092,2]
[353471559,1739869839902,-259.51,0.00014092,2]
[353471561,1739869839911,-231.54,0.00014092,2]
[353471563,1739869839922,-500.0,0.00014092,2]
[353471565,1739869839931,-600.0,0.00014164,2]
[353471567,1739869839941,-500.0,0.0001417,2]
[353471569,1739869839950,-504.6,0.0001417,2]
[353471571,1739869839959,-500.0,0.0001417,2]
[353471573,1739869839968,-500.0,0.0001417,2]
[353471575,1739869839978,-500.0,0.0001417,2]
[353471577,1739869839987,-500.0,0.0001417,2]
[353471578,1739869839996,-500.0,0.0001417,2]
[353471579,1739869840005,-258.37,0.0001417,2]
[353471581,1739869840014,-500.0,0.0001417,2]
[353471583,1739869840023,-500.0,0.0001417,2]
[353471585,1739869840033,-500.0,0.00014171,2]
[353471587,1739869840042,-500.0,0.00014171,2]
[353471588,1739869840051,-201.75,0.00014171,2]
[353471589,1739869840061,-500.0,0.00014171,2]
[353471590,1739869840070,-500.0,0.00014171,2]
[353471591,1739869840081,-570.99,0.00014171,2]
[353471592,1739869840092,-277.1,0.00014171,2]
[353471593,1739869840101,-500.0,0.00014171,2]
[353471595,1739869840111,-221.33,0.00014171,2]
[353471597,1739869840121,-179.88,0.00014171,2]
[353471598,1739869840131,-343.76,0.00014171,2]
[353471599,1739869840141,-500.0,0.00014172,2]
[353471600,1739869840151,-2081.65,0.00014172,2]
[353471602,1739869840160,-500.0,0.00014172,2]
[353471603,1739869840173,-1034.17,0.00014172,2]
[353471605,1739869840184,-500.0,0.00014172,2]
[353471608,1739869840193,-273.91,0.00014173,2]
[353471610,1739869840203,-500.0,0.00014173,2]
[353471612,1739869840212,-500.0,0.00014173,2]
[353471614,1739869840222,-500.0,0.00014173,2]
[353471615,1739869840231,-500.0,0.00014173,2]
[353471617,1739869840240,-500.0,0.00014173,2]
[353471619,1739869840249,-1315.79,0.00014173,2]
[353471622,1739869840262,-500.0,0.00014173,2]
[353471624,1739869840271,-500.0,0.00014174,2]
[353471625,1739869840280,-500.0,0.00014252,2]
[353471628,1739869840289,-500.0,0.00014252,2]
[353471630,1739869840299,-500.0,0.00014252,2]
[353471632,1739869840308,-560.81,0.00014252,2]
[353471634,1739869840318,-419.54353806,0.00014252,2]
[353471636,1739869840327,-500.0,0.00014252,2]
[353471638,1739869840336,-500.0,0.00014252,2]
[353471640,1739869840345,-500.0,0.00014252,2]
[353471642,1739869840355,-500.0,0.00014253,2]
[353471644,1739869840364,-500.0,0.00014253,2]
[353471646,1739869840374,-500.0,0.00014253,2]
[353471648,1739869840383,-258.96,0.00014253,2]
[353471650,1739869840392,-335.95,0.00014253,2]
[353471652,1739869840402,-2081.65,0.00014254,2]
[353471654,1739869840411,-500.0,0.00014254,2]
[353471656,1739869840421,-1034.17,0.00014254,2]
[353471658,1739869840430,-500.0,0.00014254,2]
[353471660,1739869840439,-500.0,0.00014255,2]
[353471661,1739869840447,-500.0,0.00014255,2]
[353471662,1739869840457,-500.0,0.00014255,2]
[353471663,1739869840466,-500.0,0.00014255,2]
[353471664,1739869840475,-1315.79,0.00014255,2]
[353471665,1739869840484,-500.0,0.00014255,2]
[353471666,1739869840494,-500.0,0.00014256,2]
[353471667,1739869840503,-500.0,0.00014334,2]
[353471668,1739869840513,-500.0,0.00014334,2]
[353471669,1739869840522,-500.0,0.00014334,2]
[353471670,1739869840531,-566.88,0.00014334,2]
[353471672,1739869840540,-500.0,0.00014334,2]
[353471673,1739869840550,-500.0,0.00014334,2]
[353471674,1739869840559,-500.0,0.00014335,2]
[353471675,1739869840568,-500.0,0.00014335,2]
[353471676,1739869840577,-500.0,0.00014335,2]
[353471677,1739869840586,-2081.65,0.00014336,2]
[353471678,1739869840595,-165.04,0.00014336,2]
[353471679,1739869840605,-1034.17,0.00014336,2]
[353471680,1739869840614,-500.0,0.00014336,2]
[353471681,1739869840623,-275.21,0.00014337,2]
[353471682,1739869840633,-379.89,0.00014337,2]
[353471683,1739869840642,-346.47,0.00014337,2]
[353471684,1739869840651,-1315.79,0.00014337,2]
[353471685,1739869840660,-193.61,0.00014337,2]
[353471686,1739869840671,-500.0,0.00014338,2]
[353471687,1739869840681,-500.0,0.00014416,2]
[353471688,1739869840691,-500.0,0.00014416,2]
[353471689,1739869840700,-500.0,0.00014416,2]
[353471690,1739869840710,-500.0,0.00014416,2]
[353471691,1739869840719,-500.0,0.00014416,2]
[353471692,1739869840729,-500.0,0.00014417,2]
[353471693,1739869840739,-500.0,0.00014417,2]
[353471694,1739869840748,-500.0,0.00014417,2]
[353471695,1739869840758,-2081.65,0.00014418,2]
[353471696,1739869840767,-1034.17,0.00014418,2]
[353471697,1739869840776,-500.0,0.00014418,2]
[353471698,1739869840786,-500.0,0.00014419,2]
[353471699,1739869840795,-1315.79,0.0001442,2]
[353471700,1739869840805,-195.41,0.0001442,2]
[353471701,1739869840814,-455.98412876,0.00014456,2]
[353471702,1739869840823,-500.0,0.00014499,2]
[353471703,1739869840833,-500.0,0.00014499,2]
[353471704,1739869840843,-500.0,0.00014499,2]
[353471705,1739869840852,-500.0,0.00014499,2]
[353471706,1739869840862,-500.0,0.00014499,2]
[353471707,1739869840871,-500.0,0.000145,2]
[353471708,1739869840881,-500.0,0.000145,2]
[353471709,1739869840890,-500.0,0.000145,2]
[353471710,1739869840900,-2081.65,0.00014501,2]
[353471711,1739869840909,-1034.17,0.00014501,2]
[353471712,1739869840920,-548.69,0.00014501,2]
[353471713,1739869840930,-1315.79,0.00014502,2]
[353471714,1739869840939,-500.0,0.00014503,2]
[353471715,1739869840949,-354.61194659,0.00014503,2]
[353471716,1739869840958,-500.0,0.00014581,2]
[353471718,1739869840967,-500.0,0.00014581,2]
[353471720,1739869840977,-500.0,0.00014581,2]
[353471721,1739869840987,-500.0,0.00014581,2]
[353471722,1739869840996,-500.0,0.00014581,2]
[353471723,1739869841006,-500.0,0.00014582,2]
[353471724,1739869841015,-500.0,0.00014582,2]
[353471728,1739869841024,-500.0,0.00014582,2]
[353471730,1739869841113,-2081.65,0.00014583,2]
[353471732,1739869841123,-1034.17,0.00014583,2]
[353471734,1739869841132,-500.0,0.00014584,2]
[353471736,1739869841141,-1315.79,0.00014584,2]
[353471738,1739869841151,-609.21,0.00014663,2]
[353471740,1739869841160,-195.02417292,0.00014663,2]
[353471742,1739869841171,-500.0,0.00014663,2]
[353471744,1739869841180,-270.10330595,0.00014663,2]
[353471746,1739869841190,-500.0,0.00014663,2]
[353471748,1739869841199,-500.0,0.00014664,2]
[353471750,1739869841208,-297.05,0.00014664,2]
[353471751,1739869841218,-278.46,0.00014664,2]
[353471753,1739869841227,-2081.65,0.00014665,2]
[353471755,1739869841236,-1034.17,0.00014665,2]
[353471756,1739869841245,-1315.79,0.00014666,2]
[353471757,1739869841255,-403.67,0.00014745,2]
[353471758,1739869841265,-500.0,0.00014745,2]
[353471759,1739869841274,-500.0,0.00014746,2]
[353471760,1739869841284,-2081.65,0.00014747,2]
[353471761,1739869841294,-1034.17,0.00014747,2]
[353471762,1739869841303,-1315.79,0.00014748,2]
[353471763,1739869841313,-500.0,0.00014827,2]
[353471764,1739869841323,-500.0,0.00014828,2]
[353471766,1739869841332,-2081.65,0.00014829,2]
[353471768,1739869841341,-1034.17,0.00014829,2]
[353471770,1739869841350,-1315.79,0.0001483,2]
[353471772,1739869841361,-500.0,0.0001491,2]
[353471774,1739869841371,-457.99,0.0001491,2]
[353471776,1739869841380,-367.57129487,0.00014912,2]
[353471778,1739869841390,-2081.65,0.00014912,2]
[353471779,1739869841399,-1034.17,0.00014912,2]
[353471780,1739869841408,-1315.79,0.00014913,2]
[353471781,1739869841419,-500.0,0.00014993,2]
[353471782,1739869841428,-2081.65,0.00014994,2]
[353471783,1739869841438,-1034.17,0.00014994,2]
[353471784,1739869841447,-1315.79,0.00014995,2]
[353471785,1739869841457,-500.0,0.00015075,2]
[353471786,1739869841466,-2081.65,0.00015076,2]
[353471787,1739869841475,-1034.17,0.00015076,2]
[353471788,1739869841484,-1315.79,0.00015077,2]
[353471789,1739869841494,-500.0,0.00015157,2]
[353471790,1739869841503,-2081.65,0.00015158,2]
[353471791,1739869841513,-1034.17,0.00015158,2]
[353471792,1739869841522,-1315.79,0.00015159,2]
[353471793,1739869841531,-500.0,0.0001516,2]
[353471794,1739869841541,-500.0,0.00015239,2]
[353471795,1739869841550,-2081.65,0.0001524,2]
[353471796,1739869841560,-1034.17,0.0001524,2]
[353471797,1739869841569,-1315.79,0.00015241,2]
[353471798,1739869841579,-500.0,0.00015321,2]
[353471799,1739869841589,-2081.65,0.00015323,2]
[353471800,1739869841598,-1034.17,0.00015323,2]
[353471801,1739869841607,-1315.79,0.00015324,2]
[353471802,1739869841617,-500.0,0.00015404,2]
[353471803,1739869841626,-1209.19174717,0.00015405,2]
[353471804,1739869841753,-500.0,0.00013924,2]
[353471805,1739869841763,-259.74094018,0.00015405,2]
[353471814,1739869843157,-500.0,0.00013924,2]
[353471815,1739869843166,-612.71731265,0.00015405,2]
[353471816,1739869843177,-279.61268735,0.00015405,2]
[353471852,1739869846098,-500.0,0.00013924,2]
[353471853,1739869846107,-754.55731265,0.00015405,2]
[353471854,1739869846117,-247.56756637,0.00015406,2]
[353471856,1739870497450,-6669.868661,0.00012925,2]
[353471857,1739870497476,-700.0,0.00013068,2]
[353471858,1739870497499,-300.0,0.00013921,2]
[353471859,1739870497523,-500.0,0.00013921,2]
[353471860,1739870497695,-500.0,0.00013921,2]
[353471861,1739870497720,-500.0,0.00013922,2]
[353471862,1739870497744,-618.15,0.00013922,2]
[353471863,1739870497767,-624.27817249,0.00013922,2]
[353471864,1739870497791,-500.0,0.00013922,2]
[353471865,1739870497815,-500.0,0.00013922,2]
[353471866,1739870497838,-500.0,0.00013922,2]
[353471867,1739870497861,-500.0,0.00013922,2]
[353471868,1739870497884,-500.0,0.00013922,2]
[353471869,1739870497907,-511.7904395,0.00013922,2]
[353471870,1739870497929,-500.0,0.00013922,2]
[353471871,1739870497951,-228.64831933,0.00013922,2]
[353471872,1739870497974,-500.0,0.00013922,2]
[353471873,1739870497996,-500.0,0.00013922,2]
[353471874,1739870498019,-500.0,0.00013922,2]
[353471875,1739870498041,-500.0,0.00013922,2]
[353471876,1739870498063,-500.0,0.00013922,2]
[353471877,1739870498086,-500.0,0.00013922,2]
[353471878,1739870498113,-500.0,0.00013922,2]
[353471879,1739870498136,-602.33,0.00013922,2]
[353471880,1739870498159,-500.0,0.00013922,2]
[353471881,1739870498182,-500.0,0.00013922,2]
[353471882,1739870498204,-500.0,0.00013922,2]
[353471883,1739870498227,-500.0,0.00013922,2]
[353471884,1739870498250,-500.0,0.00013922,2]
[353471885,1739870498283,-500.0,0.00013922,2]
[353471886,1739870498310,-500.0,0.00013922,2]
[353471887,1739870498333,-500.0,0.00013922,2]
[353471888,1739870498357,-604.84153856,0.00013922,2]
[353471889,1739870498382,-500.0,0.00013922,2]
[353471890,1739870498405,-500.0,0.00013922,2]
[353471891,1739870498427,-500.0,0.00013922,2]
[353471892,1739870498449,-500.0,0.00013922,2]
[353471893,1739870498473,-500.0,0.00013922,2]
[353471894,1739870498495,-500.0,0.00013922,2]
[353471895,1739870498519,-500.0,0.00013922,2]
[353471896,1739870498541,-500.0,0.00013922,2]
[353471897,1739870498563,-500.0,0.00013922,2]
[353471898,1739870498586,-500.0,0.00013922,2]
[353471899,1739870498609,-500.0,0.00013922,2]
[353471900,1739870498632,-500.0,0.00013922,2]
[353471901,1739870498654,-500.0,0.00013922,2]
[353471902,1739870498677,-500.0,0.00013922,2]
[353471903,1739870498702,-500.0,0.00013922,2]
[353471904,1739870498725,-500.0,0.00013922,2]
[353471905,1739870498750,-500.0,0.00013922,2]
[353471906,1739870498790,-500.0,0.00013922,2]
[353471907,1739870498812,-500.0,0.00013923,2]
[353471908,1739870498834,-400.39286912,0.00013923,2]
[353471910,1739870570898,1000.0,0.00019,120]
[353471913,1739870828130,-400.0,8.951e-05,2]